bitfinex-derivatives/quotes_ETHF0:USTF0_20240928
["timestamp","ask_amount","ask_price","bid_price","bid_amount"]
[1727520420197,1.1615,2677.6,2677.5,1.72338]
[1727520420403,2.14027369,2677.6,2677.5,2.32291107]
[1727520420621,2.14027369,2677.6,2677.5,6.04301673]
[1727520420805,2.14027369,2677.6,2677.5,5.66963673]
[1727520420993,2.14027369,2677.6,2677.5,6.04301673]
[1727520421196,2.14027369,2677.6,2677.5,5.66963673]
[1727520421197,0.97877369,2677.6,2677.5,5.66963673]
[1727520421399,0.79,2677.6,2677.5,6.04301673]
[1727520421695,3.133697,2677.6,2677.5,6.04301673]
[1727520421899,3.32048766,2677.6,2677.5,6.04301673]
[1727520422095,3.32048766,2677.6,2677.5,4.69301673]
[1727520422690,1.36189066,2677.6,2677.5,4.69301673]
[1727520423103,1.36189066,2677.6,2677.5,6.04301673]
[1727520423297,2.6427283,2677.6,2677.5,6.04301673]
[1727520423499,2.82951896,2677.6,2677.5,6.04301673]
[1727520423694,1.36189066,2677.6,2677.5,6.04301673]
[1727520425307,1.36189066,2677.6,2677.5,4.69301673]
[1727520425507,1.36189066,2677.6,2677.5,4.31963673]
[1727520425508,3.32048766,2677.6,2677.5,4.31963673]
[1727520425703,3.32048766,2677.6,2677.5,0.37338]
[1727520427503,3.31849907,2677.6,2677.5,0.37338]
[1727520429609,2.1534571,2677.6,2677.5,0.37338]
[1727520430914,2.1534571,2677.6,2677.5,1.72338]
[1727520431114,1.1751,2677.6,2677.5,1.72338]
[1727520431311,1.1751,2677.6,2677.5,2.09858]
[1727520432521,0.9783571,2677.7,2677.6,0.37337]
[1727520433218,0.3712,2677.8,2677.6,0.37337]
[1727520433219,1.3495571,2677.8,2677.6,0.37337]
[1727520433611,0.9783571,2677.7,2677.6,0.37337]
[1727520434012,1.3495571,2677.8,2677.6,0.37337]
[1727520434519,0.9783571,2677.7,2677.6,0.37337]
[1727520435423,1.3495571,2677.8,2677.6,0.37337]
[1727520435719,0.9783571,2677.7,2677.6,0.37337]
[1727520437432,1.3495571,2677.8,2677.6,0.37337]
[1727520437611,0.9783571,2677.7,2677.6,0.37337]
[1727520437921,0.3712,2677.8,2677.7,0.37336]
[1727520438227,1.34951845,2677.8,2677.7,1.72336]
[1727520439022,0.97831845,2677.8,2677.7,6.04880987]
[1727520439217,1.72641845,2677.9,2677.8,0.37334]
[1727520439518,1.72641845,2677.9,2677.8,1.72334]
[1727520439821,1.72641845,2677.9,2677.8,2.09454]
[1727520441511,0.7481,2677.9,2677.8,2.09454]
[1727520441820,1.72641845,2677.9,2677.8,2.09454]
[1727520442322,0.7481,2677.9,2677.8,2.09454]
[1727520442923,1.72641845,2677.9,2677.8,1.7212]
[1727520443320,1.72641845,2677.9,2677.8,2.09454]
[1727520443625,1.72641845,2677.9,2677.8,1.72334]
[1727520443825,0.7481,2677.9,2677.8,1.72334]
[1727520444024,1.72641845,2677.9,2677.8,1.72334]
[1727520444225,0.7481,2677.9,2677.8,1.72334]
[1727520446629,0.7481,2677.9,2677.8,1.35]
[1727520447026,0.7481,2677.9,2677.8,1.72334]
[1727520448223,0.7481,2677.9,2677.8,1.35]
[1727520448538,0.7481,2677.9,2677.8,1.72334]
[1727520448727,0.7481,2677.9,2677.8,0.37334]
[1727520449317,0.7481,2677.9,2677.7,1.35]
[1727520449737,0.7481,2677.9,2677.8,4.13659772]
[1727520449922,0.7481,2677.9,2677.8,4.50993772]
[1727520450432,0.7481,2677.9,2677.8,4.13659772]
[1727520451421,0.7481,2677.9,2677.8,4.50993772]
[1727520451627,1.72641845,2677.9,2677.8,4.50993772]
[1727520451817,1.72641845,2677.9,2677.8,4.13659772]
[1727520452023,0.7481,2677.9,2677.7,1.72335]
[1727520452226,1.7259298,2677.9,2677.7,1.72335]
[1727520452827,1.7259298,2677.9,2677.8,0.37334]
[1727520453230,1.7259298,2677.9,2677.7,1.72335]
[1727520455234,1.7259298,2677.9,2677.8,0.37334]
[1727520455452,0.7481,2677.9,2677.8,0.37334]
[1727520455633,9.22707671,2677.9,2677.3,1.34631107]
[1727520455934,9.22707671,2677.9,2677.5,1.27538]
[1727520455935,0.978141,2677.6,2677.5,1.27538]
[1727520456231,1.46716775,2677.7,2677.6,0.37337]
[1727520456435,1.46724941,2677.7,2677.6,0.37337]
[1727520456738,2.14340456,2677.8,2677.7,0.37336]
[1727520456936,2.14340519,2677.8,2677.7,0.37336]
[1727520457124,3.92119678,2677.8,2677.7,0.37336]
[1727520457330,5.87780519,2677.8,2677.7,0.37336]
[1727520457940,3.92119678,2677.8,2677.7,0.37336]
[1727520458239,0.56014678,2677.8,2677.6,1.72336]
[1727520458441,1.4675118,2677.7,2677.6,1.72336]
[1727520458838,1.8408718,2677.7,2677.5,0.37337]
[1727520459037,0.37341,2677.4,2677.1,4.18071107]
[1727520459239,1.37465449,2677.3,2677.2,1.27543]
[1727520459539,1.75915449,2677.3,2677.2,4.6128285]
[1727520459931,0.7806,2677.3,2677.2,4.6128285]
[1727520462529,1.75915449,2677.3,2677.2,4.6128285]
[1727520462734,0.7806,2677.3,2677.2,4.6128285]
[1727520463043,1.75915449,2677.3,2677.2,4.6128285]
[1727520463243,0.7806,2677.3,2677.2,4.6128285]
[1727520463543,0.7806,2677.3,2677.2,5.9628285]
[1727520463939,1.75915449,2677.3,2677.2,5.9628285]
[1727520464342,1.75915449,2677.3,2677.2,6.3687285]
[1727520467336,1.75915449,2677.3,2677.2,4.2393985]
[1727520467737,1.75915449,2677.3,2677.2,5.5893985]
[1727520468737,1.75915449,2677.3,2676.8,1.72921107]
[1727520468738,10.7282592,2677.3,2676.8,1.72921107]
[1727520468935,0.97852191,2677.1,2676.8,2.11511107]
[1727520469249,0.97852191,2677.1,2676.9,1.35]
[1727520469740,0.97852191,2677.1,2676.9,1.72346]
[1727520469947,1.35196191,2677.1,2676.9,1.35]
[1727520471640,0.97852191,2677.1,2676.9,1.35]
[1727520472641,0.3864,2677.0,2676.9,1.35]
[1727520473348,0.3864,2677.0,2676.9,1.72347]
[1727520474347,0.3864,2677.0,2676.9,1.35]
[1727520476946,0.3864,2677.0,2676.9,1.72347]
[1727520477148,0.3864,2677.0,2676.8,0.75937]
[1727520477654,0.3864,2677.0,2676.9,0.37347]
[1727520499560,1.36492191,2677.0,2676.9,0.37347]
[1727520499767,0.3864,2677.0,2676.9,0.37347]
[1727520500064,1.36492191,2677.0,2676.9,0.37347]
[1727520503159,0.3864,2677.0,2676.9,0.37347]
[1727520503365,1.36553949,2677.0,2676.9,0.37347]
[1727520503566,0.3864,2677.0,2676.9,0.37347]
[1727520503866,1.85423174,2677.0,2676.9,0.37347]
[1727520504071,0.3864,2677.0,2676.9,0.37347]
[1727520504263,1.85423174,2677.0,2676.9,0.37347]
[1727520507475,1.85423174,2677.0,2676.9,1.34638107]
[1727520507677,2.04107384,2677.0,2676.9,0.37347]
[1727520508274,2.04107134,2677.0,2676.9,1.34638107]
[1727520509570,1.9232396,2677.0,2676.8,0.97291107]
[1727520509767,1.46975288,2676.9,2676.8,1.34638107]
[1727520510270,1.65659823,2676.9,2676.8,1.34638107]
[1727520510574,1.65671907,2676.9,2676.8,1.34638107]
[1727520511464,1.65688896,2676.9,2676.8,1.34638107]
[1727520512266,1.65688896,2676.9,2676.8,2.38343543]
[1727520512975,0.18684535,2676.9,2676.8,2.38343543]
[1727520513277,0.18684535,2676.9,2676.8,2.38447549]
[1727520513483,0.18684535,2676.9,2676.8,2.38444411]
[1727520514175,0.18684535,2676.9,2676.8,1.41052436]
[1727520514176,2.14345376,2676.9,2676.8,1.41052436]
[1727520514574,2.14345376,2676.9,2676.8,2.38463091]
[1727520514781,0.18684535,2676.9,2676.8,2.8656384]
[1727520514980,2.14345376,2676.9,2676.8,2.3846195]
[1727520515289,0.18684535,2676.9,2676.8,2.8656384]
[1727520516983,2.34300841,2677.0,2676.9,0.37347]
[1727520517186,2.52985119,2677.0,2676.9,1.34751407]
[1727520518781,2.52985119,2677.0,2676.9,0.97404407]
[1727520518982,2.53417457,2677.0,2676.9,0.97404407]
[1727520519182,0.57324278,2677.0,2676.8,2.42915811]
[1727520519381,1.47054899,2677.1,2677.0,0.37345]
[1727520519582,0.98025309,2677.2,2677.1,0.37344]
[1727520519888,0.98025309,2677.3,2677.2,0.37343]
[1727520520082,0.98025309,2677.3,2677.2,9.32876081]
[1727520520282,0.98025309,2677.3,2677.2,5.14516887]
[1727520520684,0.98025309,2677.3,2677.2,9.4512749]
[1727520521388,0.98025309,2677.4,2677.3,0.37341]
[1727520521591,0.98025309,2677.4,2677.3,4.4862081]
[1727520521787,0.98025309,2677.4,2677.3,8.56940355]
[1727520522381,0.98025309,2677.4,2677.3,11.26874353]
[1727520522782,0.98025309,2677.4,2677.3,5.81013353]
[1727520522990,0.98025309,2677.4,2677.3,6.18354353]
[1727520522991,0.3944,2677.4,2677.3,6.18354353]
[1727520523288,0.3944,2677.4,2677.3,4.83769545]
[1727520523985,1.86494899,2677.4,2677.3,5.21110545]
[1727520524382,1.37341001,2677.4,2677.3,5.21110545]
[1727520524578,0.3944,2677.4,2677.3,5.21110545]
[1727520524792,0.3944,2677.4,2677.3,8.94630545]
[1727520524988,1.87004899,2677.5,2677.4,0.3734]
[1727520525192,1.47054899,2677.5,2677.4,0.3734]
[1727520525386,0.978835,2677.5,2677.4,1.7234]
[1727520527089,1.65481845,2677.5,2677.4,4.9312]
[1727520527293,1.46802476,2677.5,2677.4,4.9312]
[1727520527586,1.46802476,2677.5,2677.4,12.79360378]
[1727520527792,2.33158291,2677.7,2677.5,0.37338]
[1727520527994,0.18678979,2677.6,2677.5,0.37338]
[1727520528789,1.46757813,2677.6,2677.5,0.37337]
[1727520529189,1.46757813,2677.6,2677.5,1.72337]
[1727520529499,0.3707,2677.7,2677.5,1.35]
[1727520529500,1.83827813,2677.7,2677.5,1.35]
[1727520529892,1.83827813,2677.7,2677.5,1.72338]
[1727520530093,1.83827813,2677.7,2677.6,0.37337]
[1727520530593,2.02506763,2677.7,2677.6,0.37337]
[1727520530995,2.02506783,2677.7,2677.5,1.72338]
[1727520531294,1.83827813,2677.7,2677.6,0.37337]
[1727520531988,1.83827813,2677.7,2677.5,1.72338]
[1727520532288,0.97788838,2677.6,2677.5,0.37338]
[1727520533083,1.83827813,2677.7,2677.5,0.37338]
[1727520533280,0.97769217,2677.6,2677.5,0.37338]
[1727520534985,1.83827813,2677.7,2677.5,0.37338]
[1727520534986,2.8159703,2677.7,2677.5,0.37338]
[1727520535186,1.34839217,2677.7,2677.5,0.37338]
[1727520535594,1.35,2677.6,2677.2,0.97243808]
[1727520535784,1.72342,2677.3,2676.9,8.6386573]
[1727520535987,1.1643,2677.2,2676.9,8.6386573]
[1727520536186,2.14199217,2677.2,2676.9,8.6386573]
[1727520536392,2.14199217,2677.2,2676.9,9.0121173]
[1727520536591,2.51542217,2677.2,2676.9,10.3621173]
[1727520536792,2.14199217,2677.2,2676.9,10.3621173]
[1727520537703,2.14199217,2677.2,2677.0,0.37345]
[1727520538514,0.7612,2677.2,2677.1,1.72344]
[1727520539197,0.7612,2677.2,2677.1,2.11484]
[1727520539494,0.97769217,2677.5,2677.1,9.79807277]
[1727520539797,1.36859217,2677.5,2677.2,1.7444]
[1727520539991,1.36859217,2677.5,2677.3,0.37341]
[1727520540197,1.36859217,2677.5,2677.4,0.3734]
[1727520540788,0.3909,2677.5,2677.4,0.3734]
[1727520541583,0.3909,2677.5,2677.4,1.7234]
[1727520542196,0.3909,2677.5,2677.4,2.1241]
[1727520548289,1.7409,2677.5,2677.4,0.3734]
[1727520548494,2.71859217,2677.5,2677.4,0.3734]
[1727520548800,1.36859217,2677.5,2677.4,0.3734]
[1727520553207,0.37341,2677.4,2677.1,3.58123]
[1727520553408,1.35,2677.2,2676.9,8.6386573]
[1727520553711,1.75299217,2677.1,2676.9,9.0121273]
[1727520554004,1.75299217,2677.1,2676.9,9.9886573]
[1727520554195,1.75299217,2677.1,2676.9,1.35]
[1727520554196,2.12643217,2677.1,2676.9,1.35]
[1727520554700,1.75299217,2677.1,2676.9,0.37347]
[1727520555601,0.97769217,2677.0,2676.9,0.37347]
[1727520555801,1.75299217,2677.1,2676.9,0.37347]
[1727520556211,0.97769217,2677.0,2676.9,0.37347]
[1727520556707,0.97769217,2677.0,2676.8,1.35]
[1727520556708,0.97769217,2677.0,2676.8,1.72348]
[1727520556904,0.3944,2676.9,2676.8,1.35]
[1727520557421,0.3944,2676.9,2676.8,1.72348]
[1727520557606,0.3944,2676.9,2676.7,0.3701]
[1727520557805,0.3881,2676.8,2676.7,0.7436]
[1727520560004,1.38239217,2677.1,2676.7,0.3701]
[1727520560200,2.17059217,2677.1,2676.9,0.37347]
[1727520560396,1.1929,2677.1,2676.9,0.37347]
[1727520560610,2.17059217,2677.1,2676.9,0.37347]
[1727520563206,2.17059217,2677.1,2676.8,1.72348]
[1727520564114,2.17059217,2677.1,2676.9,0.37347]
[1727520564309,2.17059217,2677.1,2676.8,1.72347]
[1727520565106,2.17059217,2677.1,2676.9,0.37346]
[1727520565309,2.54404217,2677.1,2676.7,0.3701]
[1727520565507,0.97769217,2677.0,2676.7,0.74359]
[1727520565906,0.97769217,2677.0,2676.7,0.37349]
[1727520566113,2.32769217,2677.0,2676.7,0.37349]
[1727520566313,2.70115217,2677.0,2676.7,0.37349]
[1727520567523,2.70115217,2677.0,2676.4,0.97243808]
[1727520567524,2.32769217,2676.9,2676.4,0.97243808]
[1727520567710,4.55897217,2676.8,2676.5,0.37352]
[1727520567907,0.7712,2676.7,2676.6,4.25558837]
[1727520568213,2.1212,2676.7,2676.5,0.37352]
[1727520568612,2.1212,2676.7,2676.6,4.25558837]
[1727520571424,0.7712,2676.7,2676.6,4.25558837]
[1727520571917,0.7712,2676.7,2676.6,4.62909837]
[1727520572515,0.7712,2676.7,2676.6,4.25558837]
[1727520573316,0.7712,2676.7,2676.6,4.62909837]
[1727520573914,0.7712,2676.7,2676.6,4.25558837]
[1727520574146,0.7712,2676.7,2676.6,4.62909837]
[1727520574621,1.1447,2676.7,2676.6,4.25558837]
[1727520574921,0.7712,2676.7,2676.6,4.62909837]
[1727520576721,0.7712,2676.7,2676.6,4.25558837]
[1727520577117,0.7712,2676.7,2676.6,4.62909837]
[1727520579822,0.7712,2676.7,2676.6,4.25558837]
[1727520580023,0.7712,2676.7,2676.6,4.62909837]
[1727520580617,1.1447,2676.7,2676.6,4.25558837]
[1727520580929,0.7712,2676.7,2676.6,4.62909837]
[1727520582531,0.7712,2676.7,2676.6,4.25558837]
[1727520582532,1.1447,2676.7,2676.6,4.25558837]
[1727520582721,0.7712,2676.7,2676.6,4.25558837]
[1727520582921,0.7712,2676.7,2676.6,4.62909837]
[1727520584131,1.1447,2676.7,2676.6,4.25558837]
[1727520585029,1.1447,2676.7,2676.6,4.62909837]
[1727520585030,0.7712,2676.7,2676.6,4.62909837]
[1727520585929,0.7712,2676.7,2676.6,4.25558837]
[1727520585930,1.1447,2676.7,2676.6,4.25558837]
[1727520588531,2.12239217,2676.7,2676.6,4.25558837]
[1727520588932,0.37352,2676.5,2676.3,0.37355]
[1727520589138,0.3877,2676.4,2676.3,0.37355]
[1727520589837,0.3877,2676.4,2676.2,3.98666]
[1727520590032,0.76124,2676.4,2676.2,0.4053]
[1727520590233,0.7958,2676.3,2676.2,0.4053]
[1727520590825,1.16935,2676.3,2676.2,0.4053]
[1727520592240,1.16935,2676.3,2676.1,0.37358]
[1727520593539,0.7958,2676.3,2676.1,0.37358]
[1727520593731,1.77349217,2676.3,2676.2,0.37357]
[1727520593928,0.7958,2676.3,2676.2,0.37357]
[1727520594641,2.14704217,2676.3,2676.1,4.3501165]
[1727520596735,1.35,2676.2,2676.1,4.3501165]
[1727520597459,1.72357,2676.2,2676.0,1.17879]
[1727520597638,0.3995,2676.1,2676.0,0.78029]
[1727520599339,4.1363,2676.1,2676.0,0.78029]
[1727520599546,4.1363,2676.1,2676.0,0.37359]
[1727520603742,6.83757217,2676.1,2675.9,0.4013]
[1727520603937,2.72719217,2676.1,2675.9,0.4013]
[1727520604140,2.72719217,2676.1,2675.9,0.77491]
[1727520605936,2.72719217,2676.1,2675.8,0.3718]
[1727520606139,1.35,2675.9,2675.7,0.77553]
[1727520606439,1.35,2675.9,2675.7,0.4019]
[1727520606634,0.4091,2675.8,2675.7,0.4019]
[1727520607046,0.4091,2675.8,2675.7,0.77554]
[1727520607238,0.4091,2675.8,2675.7,0.4019]
[1727520607443,0.4091,2675.8,2675.7,0.77554]
[1727520607639,0.4091,2675.8,2675.7,0.4019]
[1727520608242,0.4091,2675.8,2675.7,0.77554]
[1727520608840,0.4091,2675.8,2675.7,0.37364]
[1727520609237,0.4091,2675.8,2675.6,0.3935]
[1727520609743,0.4091,2675.8,2675.6,0.76714]
[1727520609944,0.4091,2675.8,2675.7,0.37364]
[1727520614248,4.1467,2675.8,2675.4,3.5917]
[1727520614557,0.37368,2675.4,2675.3,9.0410573]
[1727520614741,2.70136217,2675.5,2675.3,9.4147373]
[1727520615051,1.1412,2675.4,2675.3,9.4147373]
[1727520615236,1.51488,2675.4,2675.3,9.4147373]
[1727520615437,1.1412,2675.4,2675.3,9.4147373]
[1727520615947,1.51488,2675.4,2675.3,9.0123373]
[1727520616549,0.37369,2675.3,2675.2,0.3737]
[1727520616846,1.72369,2675.3,2675.2,0.3737]
[1727520617455,5.46129,2675.3,2675.2,0.3737]
[1727520618744,5.46129,2675.3,2675.1,0.37372]
[1727520618946,1.35,2675.2,2675.1,0.37372]
[1727520620050,1.72371,2675.2,2675.0,0.37373]
[1727520620268,1.35,2675.2,2675.0,0.37373]
[1727520622147,1.35,2675.2,2674.9,0.4024]
[1727520622148,1.35,2675.2,2674.9,0.77614]
[1727520622347,1.35,2675.0,2674.9,0.77614]
[1727520624144,1.35,2675.0,2674.9,0.37374]
[1727520626153,1.35,2675.0,2674.7,0.3855]
[1727520626348,1.35,2674.8,2674.7,0.3855]
[1727520626746,1.7359,2674.8,2674.7,0.3855]
[1727520627146,1.7359,2674.8,2674.5,0.3917]
[1727520627448,1.35,2674.6,2674.2,0.3825]
[1727520627642,0.37378,2674.7,2674.3,0.37383]
[1727520627643,1.35,2674.4,2674.3,0.37383]
[1727520627847,1.35,2674.4,2674.3,4.3426265]
[1727520628859,1.35,2674.4,2674.2,0.75634]
[1727520629261,1.35,2674.4,2674.2,0.3825]
[1727520629553,1.35,2674.4,2674.2,0.75634]
[1727520630258,1.72383,2674.4,2674.1,0.3815]
[1727520630456,1.35,2674.2,2674.1,0.3815]
[1727520634255,1.738,2674.2,2674.1,0.3815]
[1727520638062,1.738,2674.2,2674.0,0.3917]
[1727520638269,1.738,2674.2,2673.9,0.74768]
[1727520638560,1.35,2674.0,2673.9,0.74768]
[1727520639554,1.35,2674.0,2673.9,0.3738]
[1727520640064,1.35,2674.0,2673.9,0.74769]
[1727520640267,1.35,2674.0,2673.9,0.3738]
[1727520640465,1.35,2674.0,2673.8,1.12629]
[1727520640664,0.375,2673.9,2673.8,1.12629]
[1727520645264,0.375,2673.9,2673.8,0.74269]
[1727520645571,0.375,2673.9,2673.8,0.7427]
[1727520646971,1.35,2674.0,2673.9,0.37389]
[1727520647168,1.35,2674.0,2673.8,0.74269]
[1727520647367,1.35,2674.0,2673.9,0.37389]
[1727520653178,1.35,2674.0,2673.8,0.3688]
[1727520653671,1.35,2674.0,2673.9,0.37389]
[1727520654373,1.35,2674.0,2673.5,3.6119]
[1727520654568,1.1681,2674.1,2673.5,0.8022]
[1727520654773,1.35,2673.7,2673.6,5.0200798]
[1727520655973,1.35,2673.7,2673.6,4.2477498]
[1727520656574,1.35,2673.7,2673.6,4.6457498]
[1727520656970,1.35,2673.7,2673.6,5.0196798]
[1727520658480,1.35,2673.7,2673.6,4.6457498]
[1727520658674,2.1532,2673.7,2673.6,5.0196798]
[1727520660176,2.1532,2673.7,2673.6,4.6457498]
[1727520660379,2.1532,2673.7,2673.6,5.0196798]
[1727520660582,2.1532,2673.7,2673.6,0.77193]
[1727520662381,2.1532,2673.7,2673.6,0.37393]
[1727520662772,2.1532,2673.7,2673.3,0.3839]
[1727520662973,1.35,2673.4,2673.3,0.3839]
[1727520663282,1.35,2673.4,2673.2,3.9936]
[1727520663470,0.3818,2673.3,2673.2,4.36758]
[1727520663674,0.3818,2673.3,2673.2,3.96948]
[1727520663675,1.1684,2673.3,2673.2,3.96948]
[1727520663975,1.1684,2673.3,2673.2,3.2078]
[1727520664677,1.1684,2673.3,2673.2,3.58178]
[1727520664975,0.97769217,2673.7,2673.6,0.37393]
[1727520665177,0.97769217,2673.7,2673.2,8.66684022]
[1727520665178,1.35,2673.7,2673.3,0.8148]
[1727520665377,1.35,2673.7,2673.6,0.37393]
[1727520668281,1.35,2673.7,2673.5,0.37394]
[1727520668482,1.7566,2673.6,2673.5,0.37394]
[1727520672376,2.13053,2673.6,2673.4,4.75933022]
[1727520672580,1.7566,2673.6,2673.5,0.37394]
[1727520674485,2.73615811,2673.6,2673.5,0.37394]
[1727520678483,2.73615811,2673.6,2673.4,0.3943]
[1727520678686,2.73615811,2673.6,2673.5,0.37394]
[1727520679089,0.97955811,2673.7,2673.6,0.37393]
[1727520679285,1.35,2673.6,2673.5,4.55815217]
[1727520679597,1.35,2673.6,2673.5,1.42434156]
[1727520679787,1.36745811,2673.9,2673.6,0.93483]
[1727520679985,1.35,2674.0,2673.9,0.37389]
[1727520680193,2.32969283,2674.0,2673.9,0.37389]
[1727520683388,1.35,2674.0,2673.9,0.37389]
[1727520684095,2.32995819,2674.0,2673.9,0.37389]
[1727520684492,2.33000427,2674.0,2673.9,0.37389]
[1727520684789,1.35,2674.0,2673.9,0.37389]
[1727520684997,2.32999556,2674.0,2673.9,0.37389]
[1727520685391,1.35,2674.0,2673.9,0.37389]
[1727520685590,2.33005183,2674.0,2673.9,0.37389]
[1727520685899,1.35,2674.0,2673.9,0.37389]
[1727520686097,2.33005695,2674.0,2673.9,0.37389]
[1727520686299,2.33004815,2674.0,2673.9,0.37389]
[1727520686503,1.35,2674.0,2673.9,0.37389]
[1727520686792,2.33004497,2674.0,2673.9,0.37389]
[1727520686995,1.35,2674.0,2673.9,0.37389]
[1727520687900,2.81933717,2674.0,2673.9,0.37389]
[1727520689001,1.35,2674.0,2673.9,0.37389]
[1727520689199,2.33002671,2674.0,2673.9,0.37389]
[1727520689699,1.35,2674.0,2673.9,0.37389]
[1727520689998,2.81933717,2674.0,2673.9,0.37389]
[1727520691397,1.35,2674.0,2673.9,0.37389]
[1727520691899,2.81933717,2674.0,2673.7,0.97633179]
[1727520692092,3.57767601,2673.9,2673.8,0.3739]
[1727520693500,3.95156601,2673.9,2673.8,0.3739]
[1727520693698,3.57767601,2673.9,2673.8,0.3739]
[1727520693891,3.95156601,2673.9,2673.8,0.3739]
[1727520694293,4.13863142,2673.9,2673.8,0.3739]
[1727520694493,3.76474142,2673.9,2673.8,0.3739]
[1727520694693,3.76474168,2673.9,2673.8,0.3739]
[1727520695095,3.57767601,2673.9,2673.8,0.3739]
[1727520695294,3.95156601,2673.9,2673.7,0.3935]
[1727520695496,0.98010748,2673.8,2673.7,0.76742]
[1727520696905,2.1076,2673.9,2673.8,0.3739]
[1727520697391,3.57767601,2673.9,2673.8,0.3739]
[1727520697587,2.1076,2673.9,2673.8,0.3739]
[1727520697992,2.1076,2673.9,2673.7,1.74373179]
[1727520698202,0.98009429,2673.8,2673.7,0.7674]
[1727520700195,1.47007601,2673.9,2673.8,0.3739]
[1727520700196,2.33009429,2673.9,2673.8,0.3739]
[1727520703008,1.35,2673.9,2673.8,0.3739]
[1727520703210,2.33009364,2673.9,2673.8,0.3739]
[1727520704496,1.35,2673.9,2673.8,0.3739]
[1727520704697,1.7317,2673.9,2673.8,0.3739]
[1727520706504,3.20177601,2673.9,2673.8,0.3739]
[1727520706900,1.7317,2673.9,2673.8,0.3739]
[1727520707303,3.20177601,2673.9,2673.8,0.3739]
[1727520708112,2.71180003,2673.9,2673.8,0.3739]
[1727520710512,6.94177601,2673.9,2673.7,0.976627]
[1727520710706,0.37394,2673.5,2673.3,1.46461826]
[1727520710910,2.5317,2673.4,2673.1,0.976627]
[1727520711105,2.82101458,2673.2,2673.0,0.976627]
[1727520711311,0.98039689,2673.1,2672.9,1.743247]
[1727520711514,1.35,2673.0,2672.9,1.743247]
[1727520711815,1.7452,2673.0,2672.9,5.70703943]
[1727520712215,1.7452,2673.0,2672.9,5.33301943]
[1727520712818,1.7452,2673.0,2672.9,5.70704943]
[1727520713319,1.35,2673.1,2672.9,5.70703943]
[1727520715310,1.35,2673.1,2672.9,4.35639243]
[1727520715512,1.35,2673.1,2672.9,4.73041243]
[1727520716017,1.35,2673.1,2672.9,4.35639243]
[1727520716518,1.7267,2673.0,2672.9,4.35639243]
[1727520718219,1.7267,2673.0,2672.9,4.73042243]
[1727520718719,1.7267,2673.0,2672.9,4.35639243]
[1727520719518,1.7267,2673.0,2672.9,4.73042243]
[1727520721524,1.7267,2673.0,2672.9,3.96379243]
[1727520721728,1.7267,2673.0,2672.8,0.37404]
[1727520721924,2.1294,2672.9,2672.8,0.37404]
[1727520722127,2.1294,2672.9,2672.8,4.24116148]
[1727520722322,2.1294,2672.9,2672.8,0.37404]
[1727520722720,1.47101458,2673.3,2672.8,3.2078]
[1727520722721,1.35,2673.1,2672.8,3.2078]
[1727520722921,1.35,2673.1,2672.9,1.56292]
[1727520723120,0.74459,2673.2,2672.9,1.1889]
[1727520723121,1.35,2673.0,2672.9,1.1889]
[1727520723344,1.35,2673.0,2672.9,1.56293]
[1727520723723,1.35,2673.0,2672.9,1.1889]
[1727520723925,1.35,2673.0,2672.9,1.56293]
[1727520725024,0.3706,2673.2,2673.0,0.37401]
[1727520725025,1.35,2673.1,2673.0,0.37401]
[1727520726928,1.35,2673.4,2673.0,9.08871496]
[1727520727123,1.35,2673.4,2673.3,0.37397]
[1727520732434,1.47101458,2673.8,2673.6,0.37393]
[1727520732435,0.98039689,2673.8,2673.6,0.37393]
[1727520732644,0.3784,2673.8,2673.7,0.37392]
[1727520732936,1.35,2673.8,2673.6,0.37392]
[1727520733139,1.7284,2673.7,2673.6,0.37392]
[1727520733335,1.7284,2673.7,2673.6,4.4665967]
[1727520735139,1.7199,2674.0,2673.9,0.37389]
[1727520736441,2.1184,2674.0,2673.9,0.37389]
[1727520753952,0.7684,2674.0,2673.9,0.37389]
[1727520754554,0.98039689,2674.4,2674.3,0.37383]
[1727520754860,2.5594,2674.4,2674.3,0.37383]
[1727520758359,2.5594,2674.4,2674.1,3.2078]
[1727520758559,2.5594,2674.4,2674.3,0.37383]
[1727520760256,1.2094,2674.4,2674.3,0.37383]
[1727520760452,2.5594,2674.4,2674.3,0.37383]
[1727520763267,3.53979689,2674.4,2674.3,0.37383]
[1727520763467,2.5594,2674.4,2674.3,0.37383]
[1727520764764,2.93322,2674.4,2674.2,0.37384]
[1727520765068,0.37384,2674.3,2674.1,4.6164357]
[1727520765260,1.35,2674.2,2674.1,4.6164357]
[1727520767172,1.35,2674.2,2674.1,0.37386]
[1727520770270,2.33039689,2674.2,2674.1,0.37386]
[1727520770663,1.35,2674.2,2674.1,0.37386]
[1727520770867,2.33039689,2674.2,2674.1,0.37386]
[1727520771867,2.70424689,2674.2,2674.0,0.77147]
[1727520772066,1.35489689,2674.1,2674.0,0.37387]
[1727520772374,2.703865,2674.1,2674.0,0.37387]
[1727520772573,2.70384315,2674.1,2674.0,0.37387]
[1727520772774,1.7245,2674.1,2674.0,0.37387]
[1727520773074,3.19551458,2674.1,2674.0,0.37387]
[1727520773675,3.38256316,2674.1,2674.0,0.37387]
[1727520774170,3.38256196,2674.1,2674.0,0.37387]
[1727520774474,7.12256196,2674.1,2673.7,0.976627]
[1727520774683,0.97970597,2673.9,2673.8,0.3739]
[1727520774974,3.12900597,2674.0,2673.9,0.37389]
[1727520775374,2.1493,2674.0,2673.9,0.37389]
[1727520776166,3.62031458,2674.0,2673.9,0.37389]
[1727520776674,3.62031458,2674.0,2673.9,0.76519]
[1727520778873,1.47101458,2674.0,2673.9,0.76519]
[1727520779069,1.47101458,2674.0,2673.9,3.091817]
[1727520779266,0.98048491,2674.0,2673.9,12.33882105]
[1727520779471,0.98048491,2674.1,2674.0,0.37387]
[1727520779671,1.47101458,2674.1,2674.0,2.11950901]
[1727520779876,0.9804636,2674.1,2674.0,1.74563901]
[1727520780178,0.9804636,2674.1,2674.0,2.19607301]